fUST/lending_fUST_20250815
["ID","MTS","AMOUNT","RATE_DAILY","PERIOD"]
[379346197,1755259835970,-151.0,0.000199,2]
[379346199,1755259835980,-151.0,0.000199,2]
[379346201,1755259835989,-240.063053,0.000199,2]
[379346203,1755259836000,-151.0,0.000199,2]
[379346204,1755259836010,-151.0,0.000199,2]
[379346207,1755259836020,-151.0,0.000199,2]
[379346209,1755259836030,-151.0,0.000199,2]
[379346210,1755259836039,-151.0,0.000199,2]
[379346212,1755259836048,-151.0,0.000199,2]
[379346214,1755259836057,-29001.68857398,0.000199,2]
[379346216,1755259836066,-151.0,0.000199,2]
[379346218,1755259836076,-151.0,0.000199,2]
[379346220,1755259836085,-151.0,0.000199,2]
[379346222,1755259836095,-460.0,0.00019901,2]
[379346224,1755259836106,-460.0,0.00019901,2]
[379346226,1755259836115,-460.0,0.00019901,2]
[379346228,1755259836125,-460.0,0.00019901,2]
[379346230,1755259836134,-460.0,0.00019901,2]
[379346233,1755259836144,-270.94991334,0.00019901,2]
[379346246,1755259836264,-475.02732027,0.00019355,2]
[379346249,1755259836276,-939.27320731,0.00019355,2]
[379346251,1755259836286,-1198.31795339,0.00019355,2]
[379346398,1755259838381,-460.0,0.00019349,2]
[379346399,1755259838390,-215.98257419,0.00019355,2]
[379346400,1755259838399,-943.40314974,0.00019355,2]
[379362860,1755260341331,159.21,0.00022459,30]
[379363074,1755260836134,-271.28008392,0.00017191,2]
[379363076,1755260853093,-928.71991608,0.00017191,2]
[379363077,1755260853117,-300.0,0.00017192,2]
[379363078,1755260853140,-300.0,0.00017192,2]
[379363079,1755260853162,-300.0,0.00017192,2]
[379363080,1755260853185,-1200.0,0.00017192,2]
[379363081,1755260853207,-300.0,0.00017192,2]
[379363082,1755260853228,-383.54683985,0.00017193,2]
[379363083,1755260853251,-163.25591572,0.00017193,2]
[379363087,1755260935847,1370.93144368,0.00016334,2]
[379363088,1755260937912,3451.92155866,0.00016334,2]
[379363089,1755260948111,-300.0,0.00017191,2]
[379363090,1755260948133,-429.94321138,0.00017192,2]
[379363091,1755260948154,-500.0,0.00017192,2]
[379363092,1755260948174,-500.0,0.00017192,2]
[379363093,1755260948195,-500.0,0.00017192,2]
[379363094,1755260948218,-500.0,0.00017192,2]
[379363095,1755260948242,-211.92183308,0.00017192,2]
[379363096,1755260948263,-500.0,0.00017192,2]
[379363097,1755260948284,-500.0,0.00017192,2]
[379363098,1755260948440,-188.46337404,0.00017192,2]
[379363099,1755260948461,-500.0,0.00017192,2]
[379363100,1755260948485,-500.0,0.00017192,2]
[379363101,1755260948507,-500.0,0.00017192,2]
[379363102,1755260948530,-218.64837295,0.00017192,2]
[379363103,1755260948553,-500.0,0.00017192,2]
[379363104,1755260948576,-500.0,0.00017192,2]
[379363105,1755260948598,-500.0,0.00017192,2]
[379363106,1755260948619,-363.90445453,0.00017192,2]
[379363107,1755260948639,-500.0,0.00017192,2]
[379363108,1755260948662,-500.0,0.00017192,2]
[379363109,1755260948683,-500.0,0.00017192,2]
[379363110,1755260948706,-500.0,0.00017192,2]
[379363111,1755260948727,-486.13113172,0.00017192,2]
[379363112,1755260948747,-500.0,0.00017192,2]
[379363113,1755260948769,-500.0,0.00017192,2]
[379363114,1755260948790,-500.0,0.00017192,2]
[379363115,1755260948810,-500.0,0.00017192,2]
[379363116,1755260948831,-500.0,0.00017192,2]
[379363117,1755260948852,-227.76271606,0.00017192,2]
[379363118,1755260948873,-500.0,0.00017192,2]
[379363119,1755260948894,-500.0,0.00017192,2]
[379363120,1755260948914,-500.0,0.00017192,2]
[379363121,1755260948937,-500.0,0.00017192,2]
[379363122,1755260948959,-500.0,0.00017192,2]
[379363123,1755260948979,-500.0,0.00017192,2]
[379363124,1755260949000,-500.0,0.00017192,2]
[379363125,1755260949020,-500.0,0.00017192,2]
[379363126,1755260949042,-500.0,0.00017192,2]
[379363127,1755260949063,-500.0,0.00017192,2]
[379363128,1755260949088,-303.17215769,0.00017192,2]
[379363129,1755260949110,-500.0,0.00017192,2]
[379363130,1755260949130,-500.0,0.00017192,2]
[379363131,1755260949150,-500.0,0.00017192,2]
[379363132,1755260949171,-500.0,0.00017192,2]
[379363133,1755260949195,-500.0,0.00017192,2]
[379363134,1755260949216,-500.0,0.00017192,2]
[379363135,1755260949237,-500.0,0.00017192,2]
[379363136,1755260949257,-500.0,0.00017192,2]
[379363137,1755260949277,-500.0,0.00017192,2]
[379363138,1755260949298,-500.0,0.00017192,2]
[379363139,1755260949319,-500.0,0.00017192,2]
[379363140,1755260949338,-500.0,0.00017192,2]
[379363141,1755260949358,-500.0,0.00017192,2]
[379363142,1755260949379,-500.0,0.00017192,2]
[379363143,1755260949400,-500.0,0.00017192,2]
[379363144,1755260949420,-500.0,0.00017192,2]
[379363145,1755260949441,-500.0,0.00017192,2]
[379363146,1755260949461,-500.0,0.00017192,2]
[379363147,1755260949481,-500.0,0.00017192,2]
[379363148,1755260949502,-500.0,0.00017192,2]
[379363149,1755260949522,-500.0,0.00017192,2]
[379363150,1755260949542,-500.0,0.00017192,2]
[379363151,1755260949562,-500.0,0.00017192,2]
[379363152,1755260949582,-500.0,0.00017192,2]
[379363153,1755260949603,-500.0,0.00017192,2]
[379363154,1755260949623,-500.0,0.00017192,2]
[379363155,1755260949644,-500.0,0.00017192,2]
[379363156,1755260949664,-500.0,0.00017192,2]
[379363157,1755260949687,-500.0,0.00017192,2]
[379363158,1755260949708,-231.90539385,0.00017192,2]
[379363159,1755260949728,-414.31112277,0.00017193,2]
[379363160,1755260949747,-1657.24449106,0.00017193,2]
[379363161,1755260949768,-3725.07130479,0.00017193,2]
[379363162,1755260949790,-28247.83737053,0.00017193,2]
[379363163,1755260949822,-20755.58315804,0.00017193,2]
[379363164,1755260949853,-200.0,0.00017535,2]
[379363165,1755260949875,-200.0,0.00017535,2]
[379363166,1755260949897,-200.0,0.00017535,2]
[379363167,1755260949918,-200.0,0.00017535,2]
[379363168,1755260949942,-200.0,0.00017535,2]
[379363169,1755260949964,-200.0,0.00017535,2]
[379363170,1755260949985,-2812.44495925,0.00017995,2]
[379363171,1755260950005,-1036.73801334,0.00017997,2]
[379363172,1755260950025,-1036.7380133,0.00018465,2]
[379363173,1755260950046,-544.0,0.00018681,2]
[379363174,1755260950069,-151.0,0.00018681,2]
[379363175,1755260950090,-151.0,0.00018681,2]
[379363176,1755260950110,-151.0,0.00018681,2]
[379363177,1755260950130,-151.0,0.00018681,2]
[379363178,1755260950152,-198.0,0.00018681,2]
[379363179,1755260950172,-151.0,0.00018681,2]
[379363180,1755260950194,-755.0,0.00018773,2]
[379363181,1755260950214,-420.0,0.00018773,2]
[379363182,1755260950235,-420.0,0.00018774,2]
[379363183,1755260950256,-1680.0,0.00018867,2]
[379363184,1755260950276,-552.81886606,0.000189,2]
[379363185,1755260950298,-1036.7380133,0.00018933,2]
[379363186,1755260950319,-544.0,0.00018955,2]
[379363187,1755260950339,-151.0,0.00018955,2]
[379363188,1755260950359,-151.0,0.00018955,2]
[379363189,1755260950379,-151.0,0.00018955,2]
[379363190,1755260950400,-151.0,0.00018955,2]
[379363191,1755260950422,-500.0,0.00019047,2]
[379363192,1755260950445,-1461.87262394,0.00019047,2]
[379363193,1755260950466,-1461.87262394,0.00019047,2]
[379363194,1755260950487,-1461.87262394,0.00019047,2]
[379363195,1755260950508,-1461.87262394,0.00019047,2]
[379363196,1755260950529,-607.21317132,0.00019047,2]
[379363197,1755260950550,-1461.87262394,0.00019047,2]
[379363198,1755260950572,-1461.87262394,0.00019047,2]
[379363199,1755260950593,-1461.87262394,0.00019047,2]
[379363200,1755260950615,-1461.87262394,0.00019047,2]
[379363201,1755260950635,-1461.87262394,0.00019047,2]
[379363202,1755260950657,-1461.87262394,0.00019047,2]
[379363203,1755260950678,-1461.87262394,0.00019047,2]
[379363204,1755260950701,-1461.87262394,0.00019047,2]
[379363205,1755260950721,-1461.87262394,0.00019047,2]
[379363206,1755260950745,-1461.87262394,0.00019047,2]
[379363207,1755260950766,-1461.87262394,0.00019047,2]
[379363208,1755260950786,-1461.87262394,0.00019047,2]
[379363209,1755260950807,-1461.87262394,0.00019047,2]
[379363210,1755260950831,-1484.36297199,0.00019047,2]
[379363211,1755260950857,-1484.36297199,0.00019047,2]
[379363212,1755260950881,-1484.36297199,0.00019047,2]
[379363213,1755260950904,-1484.36297199,0.00019047,2]
[379363214,1755260950927,-1484.36297199,0.00019047,2]
[379363215,1755260950952,-1484.36297199,0.00019047,2]
[379363216,1755260950975,-1484.36297199,0.00019047,2]
[379363217,1755260950997,-1484.36297199,0.00019047,2]
[379363218,1755260951019,-1484.36297199,0.00019047,2]
[379363219,1755260951040,-921.60753326,0.00019047,2]
[379363220,1755260972988,160.01,0.00022535,30]
[379363331,1755261032527,-300.0,0.00019046,2]
[379363334,1755261032537,-300.0,0.00019046,2]
[379363336,1755261032546,-1200.0,0.00019046,2]
[379363337,1755261032557,-151.0,0.00019047,2]
[379363338,1755261032567,-151.0,0.00019047,2]
[379363339,1755261032576,-158.30649297,0.00019047,2]
[379363341,1755261032586,-460.0,0.00019178,2]
[379363342,1755261032595,-460.0,0.00019178,2]
[379363343,1755261032605,-470.36936193,0.00019178,2]
[379363344,1755261032614,-460.0,0.00019178,2]
[379363345,1755261032623,-460.0,0.00019178,2]
[379363346,1755261032634,-460.0,0.00019178,2]
[379363347,1755261032643,-460.0,0.00019178,2]
[379363348,1755261032653,-460.0,0.00019178,2]
[379363349,1755261032662,-460.0,0.00019178,2]
[379363350,1755261032671,-356.6424097,0.00019178,2]
[379363352,1755261032684,-170.4275903,0.00019178,2]
[379363353,1755261032693,-86.27568622,0.00019178,2]
[379363354,1755261032705,-373.72431378,0.00019178,2]
[379363355,1755261032715,-460.0,0.00019178,2]
[379363356,1755261032724,-500.0,0.00019178,2]
[379363357,1755261032733,-151.0,0.00019178,2]
[379363358,1755261032743,-460.0,0.00019178,2]
[379363359,1755261032755,-2261.49,0.00019178,2]
[379363360,1755261032765,-460.0,0.00019178,2]
[379363361,1755261032775,-460.0,0.00019178,2]
[379363362,1755261032786,-460.0,0.00019178,2]
[379363363,1755261032796,-190.61381135,0.00019178,2]
[379363364,1755261032817,-269.38618865,0.00019178,2]
[379363365,1755261032826,-460.0,0.00019178,2]
[379363366,1755261032836,-465.50438707,0.00019178,2]
[379363367,1755261032845,-460.0,0.00019178,2]
[379363368,1755261032855,-495.26,0.00019178,2]
[379363370,1755261032864,-972.95,0.00019178,2]
[379363371,1755261032874,-460.0,0.00019178,2]
[379363372,1755261032883,-460.0,0.00019178,2]
[379363373,1755261032893,-497.3,0.00019178,2]
[379363374,1755261032902,-460.0,0.00019178,2]
[379363375,1755261032911,-256.97125483,0.00019178,2]
[379363376,1755261032921,-460.0,0.00019178,2]
[379363377,1755261032931,-143.04155235,0.00019178,2]
[379363378,1755261032944,-316.95844765,0.00019178,2]
[379363379,1755261032953,-460.0,0.00019178,2]
[379363380,1755261032963,-460.0,0.00019178,2]
[379363381,1755261032972,-460.0,0.00019178,2]
[379363382,1755261032981,-460.0,0.00019178,2]
[379363383,1755261032990,-460.0,0.00019178,2]
[379363384,1755261033001,-460.0,0.00019178,2]
[379363385,1755261033013,-460.0,0.00019178,2]
[379363386,1755261033023,-460.0,0.00019178,2]
[379363387,1755261033032,-955.27,0.00019178,2]
[379363388,1755261033043,-460.0,0.00019178,2]
[379363389,1755261033053,-181.0056681,0.00019178,2]
[379363390,1755261033062,-460.0,0.00019178,2]
[379363391,1755261033072,-460.0,0.00019178,2]
[379363392,1755261033082,-460.0,0.00019178,2]
[379363393,1755261033095,-460.0,0.00019178,2]
[379363394,1755261033104,-460.0,0.00019178,2]
[379363395,1755261033114,-666.0,0.00019178,2]
[379363396,1755261033124,-500.0,0.00019178,2]
[379363397,1755261033136,-544.0,0.00019229,2]
[379363398,1755261033145,-198.0,0.00019229,2]
[379363399,1755261033154,-198.0,0.00019229,2]
[379363400,1755261033164,-151.0,0.00019229,2]
[379363401,1755261033174,-151.0,0.00019229,2]
[379363402,1755261033184,-151.0,0.00019229,2]
[379363403,1755261033194,-195.31274139,0.00019229,2]
[379363404,1755261033205,-151.0,0.00019229,2]
[379363405,1755261033215,-151.0,0.00019229,2]
[379363406,1755261033225,-200.0,0.00019261,20]
[379363407,1755261033235,-200.0,0.00019261,20]
[379363408,1755261033245,-200.0,0.00019261,20]
[379363409,1755261033260,-200.0,0.00019261,20]
[379363411,1755261033270,-200.0,0.00019261,20]
[379363412,1755261033280,-200.0,0.00019261,20]
[379363413,1755261033290,-200.0,0.00019261,20]
[379363414,1755261033300,-280.0,0.00019261,20]
[379363415,1755261033311,-223.75940128,0.00019303,2]
[379363416,1755261033322,-466.17719747,0.00019349,2]
[379363417,1755261033331,-467.52659087,0.00019349,2]
[379363418,1755261033341,-460.0,0.00019349,2]
[379363419,1755261033351,-460.0,0.00019349,2]
[379363420,1755261033360,-460.0,0.00019349,2]
[379363421,1755261033371,-406.86329892,0.00019349,2]
[379363422,1755261033382,-670.34,0.00019349,2]
[379363423,1755261033392,-460.0,0.00019349,2]
[379363424,1755261033402,-460.0,0.00019349,2]
[379363426,1755261033412,-460.0,0.00019349,2]
[379363427,1755261033422,-288.59026246,0.00019349,2]
[379363479,1755261040415,-537.0600867,0.00019078,2]
[379363481,1755261040427,-1923.82925267,0.00019078,2]
[379363483,1755261040436,-460.0,0.00019178,2]
[379363485,1755261040446,-339.54,0.00019178,2]
[379363487,1755261040456,-303.22973754,0.00019349,2]
[379363489,1755261040465,-460.0,0.00019349,2]
[379363491,1755261040474,-460.0,0.00019349,2]
[379363493,1755261040484,-460.0,0.00019349,2]
[379363495,1755261040493,-267.78092845,0.00019351,2]
[379363497,1755261040503,-460.0,0.00019353,2]
[379363499,1755261040516,-460.0,0.00019354,2]
[379363501,1755261040526,-460.0,0.00019354,2]
[379363503,1755261040535,-460.0,0.00019354,2]
[379363505,1755261040544,-1036.7380133,0.000194,2]
[379363507,1755261040554,-500.0,0.00019452,2]
[379363509,1755261040563,-151.0,0.00019452,2]
[379363511,1755261040573,-460.0,0.00019452,2]
[379363513,1755261040583,-460.0,0.00019452,2]
[379363515,1755261040593,-460.0,0.00019452,2]
[379363517,1755261040603,-201.18662796,0.00019452,2]
[379363519,1755261040612,-460.0,0.00019452,2]
[379363521,1755261040622,-461.76472758,0.00019452,2]
[379363523,1755261040632,-460.0,0.00019452,2]
[379363525,1755261040642,-460.0,0.00019452,2]
[379363527,1755261040651,-460.0,0.00019452,2]
[379363529,1755261040660,-2261.49,0.00019452,2]
[379363531,1755261040670,-460.0,0.00019452,2]
[379363533,1755261040679,-460.0,0.00019452,2]
[379363535,1755261040688,-566.44,0.00019452,2]
[379363537,1755261040698,-460.0,0.00019452,2]
[379363539,1755261040709,-460.0,0.00019452,2]
[379363541,1755261040718,-972.95,0.00019452,2]
[379363543,1755261040727,-466.95171201,0.00019452,2]
[379363545,1755261040738,-460.0,0.00019452,2]
[379363547,1755261040747,-497.3,0.00019452,2]
[379363549,1755261040756,-460.0,0.00019452,2]
[379363551,1755261040771,-460.0,0.00019452,2]
[379363553,1755261040780,-460.0,0.00019452,2]
[379363555,1755261040790,-460.0,0.00019452,2]
[379363557,1755261040799,-464.48583701,0.00019452,2]
[379363559,1755261040811,-283.28,0.00019452,2]
[379363561,1755261040821,-460.0,0.00019452,2]
[379363563,1755261040831,-460.0,0.00019452,2]
[379363565,1755261040840,-460.0,0.00019452,2]
[379363567,1755261040850,-460.0,0.00019452,2]
[379363569,1755261040860,-460.0,0.00019452,2]
[379363571,1755261040869,-955.27,0.00019452,2]
[379363573,1755261040879,-460.0,0.00019452,2]
[379363575,1755261040888,-460.0,0.00019452,2]
[379363577,1755261040898,-460.0,0.00019452,2]
[379363579,1755261040908,-460.0,0.00019452,2]
[379363581,1755261040918,-460.0,0.00019452,2]
[379363583,1755261040928,-460.0,0.00019452,2]
[379363585,1755261040941,-500.0,0.00019452,2]
[379363588,1755261040953,-373.35,0.00019488,2]
[379363590,1755261040966,-544.0,0.00019503,2]
[379363592,1755261040978,-248.28210474,0.00019503,2]
[379363594,1755261040991,-163.49043659,0.00019503,2]
[379363597,1755261041003,-151.0,0.00019503,2]
[379363599,1755261041018,-500.0,0.00019573,2]
[379363601,1755261041031,-500.0,0.00019573,2]
[379363603,1755261041044,-500.0,0.00019573,2]
[379363606,1755261041056,-500.0,0.00019573,2]
[379363608,1755261041067,-500.0,0.00019573,2]
[379363610,1755261041080,-1.10662924,0.00019573,2]
[379363613,1755261041100,-498.89337076,0.00019573,2]
[379363615,1755261041112,-177.72858975,0.00019573,2]
[379363617,1755261041124,-500.0,0.00019573,2]
[379363619,1755261041135,-500.0,0.00019573,2]
[379363621,1755261041145,-500.0,0.00019573,2]
[379363623,1755261041155,-500.0,0.00019573,2]
[379363626,1755261041167,-500.0,0.00019573,2]
[379363628,1755261041178,-500.0,0.00019573,2]
[379363630,1755261041189,-500.0,0.00019573,2]
[379363631,1755261041201,-328.36230319,0.00019573,2]
[379363632,1755261041212,-503.44,0.00019623,2]
[379363633,1755261041224,-670.34,0.00019623,2]
[379363634,1755261041235,-259.00864748,0.00019623,2]
[379363635,1755261041251,-200.99135252,0.00019623,2]
[379363636,1755261041267,-460.0,0.00019623,2]
[379363637,1755261041280,-591.82,0.00019623,2]
[379363638,1755261041291,-460.0,0.00019627,2]
[379363639,1755261041303,-460.0,0.00019628,2]
[379363640,1755261041316,-460.0,0.00019628,2]
[379363641,1755261041327,-460.0,0.00019628,2]
[379363642,1755261041339,-500.0,0.00019726,2]
[379363643,1755261041349,-151.0,0.00019726,2]
[379363644,1755261041361,-260.12,0.00019726,2]
[379363646,1755261041371,-460.0,0.00019726,2]
[379363648,1755261041383,-460.0,0.00019726,2]
[379363650,1755261041395,-472.04429575,0.00019726,2]
[379363652,1755261041407,-179.93157568,0.00019726,2]
[379363655,1755261041420,-476.31,0.00019726,2]
[379363657,1755261041431,-460.0,0.00019726,2]
[379363659,1755261041442,-2261.49,0.00019726,2]
[379363662,1755261041458,-460.0,0.00019726,2]
[379363664,1755261041468,-460.0,0.00019726,2]
[379363666,1755261041478,-460.0,0.00019726,2]
[379363668,1755261041489,-530.30970819,0.00019726,2]
[379363670,1755261041499,-972.95,0.00019726,2]
[379363672,1755261041514,-460.0,0.00019726,2]
[379363675,1755261041528,-497.3,0.00019726,2]
[379363677,1755261041539,-460.0,0.00019726,2]
[379363679,1755261041549,-511.44476452,0.00019726,2]
[379363681,1755261041560,-460.0,0.00019726,2]
[379363683,1755261041570,-460.0,0.00019726,2]
[379363685,1755261041581,-460.0,0.00019726,2]
[379363687,1755261041593,-460.0,0.00019726,2]
[379363690,1755261041605,-460.0,0.00019726,2]
[379363692,1755261041615,-460.0,0.00019726,2]
[379363694,1755261041626,-410.32,0.00019726,2]
[379363696,1755261041636,-955.27,0.00019726,2]
[379363698,1755261041647,-460.0,0.00019726,2]
[379363700,1755261041658,-460.0,0.00019726,2]
[379363702,1755261041669,-460.0,0.00019726,2]
[379363704,1755261041680,-460.0,0.00019726,2]
[379363706,1755261041691,-191.42,0.00019726,2]
[379363708,1755261041702,-294.0,0.00019726,2]
[379363711,1755261041714,-500.0,0.00019726,2]
[379363713,1755261041725,-544.0,0.00019777,2]
[379363715,1755261041736,-178.325727,0.00019863,2]
[379363717,1755261041746,-1036.7380133,0.00019868,2]
[379363719,1755261041757,-1586.22,0.0001989,3]
[379363721,1755261041772,-793.11,0.0001989,3]
[379363724,1755261041783,-396.56,0.0001989,3]
[379363726,1755261041795,-500.0,0.00019896,2]
[379363728,1755261041806,-1070.54553505,0.00019896,2]
[379363730,1755261041818,-275.04921992,0.00019896,2]
[379363732,1755261041830,-1070.54553505,0.00019896,2]
[379363735,1755261041841,-1070.54553505,0.00019896,2]
[379363737,1755261041852,-1070.54553505,0.00019896,2]
[379363739,1755261041862,-1070.54553505,0.00019896,2]
[379363741,1755261041873,-1070.54553505,0.00019896,2]
[379363743,1755261041883,-1070.54553505,0.00019896,2]
[379363745,1755261041894,-1070.54553505,0.00019896,2]
[379363747,1755261041905,-1070.54553505,0.00019896,2]
[379363749,1755261041917,-1070.54553505,0.00019896,2]
[379363751,1755261041928,-1070.54553505,0.00019896,2]
[379363754,1755261041939,-298.78821144,0.00019897,2]
[379363756,1755261041949,-1195.15284574,0.00019897,2]
[379363758,1755261041960,-2689.09390292,0.00019897,2]
[379363760,1755261041971,-4780.61138297,0.00019897,2]
[379363762,1755261041982,-438.33924554,0.00019897,2]
[379363764,1755261041994,-1753.35698218,0.00019897,2]
[379363766,1755261042005,-3941.10815669,0.00019897,2]
[379363769,1755261042021,-7462.2355806,0.00019897,2]
[379363771,1755261042032,-670.34,0.00019897,2]
[379363773,1755261042043,-460.0,0.00019897,2]
[379363775,1755261042054,-460.0,0.00019897,2]
[379363777,1755261042065,-591.82,0.00019897,2]
[379363779,1755261042076,-151.0,0.000199,2]
[379363781,1755261042087,-151.0,0.000199,2]
[379363783,1755261042104,-151.0,0.000199,2]
[379363786,1755261042115,-151.0,0.000199,2]
[379363788,1755261042126,-151.0,0.000199,2]
[379363790,1755261042137,-22792.47951478,0.000199,2]
[379363962,1755261043786,-460.0,0.00019178,2]
[379363964,1755261043796,-460.0,0.00019178,2]
[379363966,1755261043806,-151.0,0.00019229,2]
[379363968,1755261043815,-276.23679241,0.00019348,2]
[379363970,1755261043824,-500.0,0.00019348,2]
[379363972,1755261043834,-500.0,0.00019348,2]
[379363974,1755261043846,-500.0,0.00019348,2]
[379363976,1755261043856,-247.52919067,0.00019348,2]
[379363978,1755261043866,-500.0,0.00019348,2]
[379363980,1755261043876,-311.46357308,0.00019348,2]
[379363982,1755261043886,-521.1800276,0.00019348,2]
[379363984,1755261043895,-460.0,0.00019452,2]
[379363985,1755261043905,-460.0,0.00019452,2]
[379363987,1755261043915,-151.0,0.00019503,2]
[379363989,1755261043925,-460.0,0.00019726,2]
[379363991,1755261043934,-198.0,0.00019777,2]
[379363993,1755261043944,-198.0,0.00019777,2]
[379363995,1755261043955,-7379.459161,0.000199,2]
[379363997,1755261043965,-460.0,0.00019901,2]
[379363999,1755261043975,-151.0,0.00019902,2]
[379364001,1755261043984,-460.0,0.00019902,2]
[379364003,1755261043994,-460.0,0.00019902,2]
[379364005,1755261044003,-460.0,0.00019902,2]
[379364007,1755261044016,-151.0,0.00019902,2]
[379364009,1755261044026,-151.11625915,0.00019904,2]
[379364011,1755261044036,-151.0,0.00019904,2]
[379364013,1755261044045,-151.0,0.00019904,2]
[379364015,1755261044055,-151.20702704,0.00019904,2]
[379364017,1755261044064,-151.58687798,0.00019904,2]
[379364019,1755261044074,-151.0,0.00019904,2]
[379364021,1755261044084,-151.29670011,0.00019904,2]
[379364023,1755261044095,-151.0,0.00019905,2]
[379364025,1755261044105,-151.0,0.00019915,2]
[379364027,1755261044118,-7406.1621564,0.00019915,2]
[379364029,1755261044128,-151.0,0.00019968,2]
[379364031,1755261044139,-151.0,0.00019968,2]
[379364033,1755261044150,-342.0,0.00019983,2]
[379364035,1755261044161,-198.28,0.0001999,3]
[379364037,1755261044171,-795.55148971,0.00019995,2]
[379364039,1755261044181,-548.90624974,0.0002,2]
[379364041,1755261044192,-151.0,0.0002,2]
[379364043,1755261044203,-2979.08080408,0.0002,2]
[379364045,1755261044214,-460.0,0.0002,2]
[379364047,1755261044225,-460.0,0.0002,2]
[379364049,1755261044235,-300.0,0.0002,2]
[379364051,1755261044245,-460.0,0.0002,2]
[379364053,1755261044254,-151.0,0.0002,2]
[379364055,1755261044269,-151.0,0.0002,2]
[379364057,1755261044278,-2261.49,0.0002,2]
[379364059,1755261044288,-460.0,0.0002,2]
[379364062,1755261044298,-151.0,0.0002,2]
[379364064,1755261044307,-151.0,0.0002,2]
[379364066,1755261044317,-460.0,0.0002,2]
[379364068,1755261044326,-972.95,0.0002,2]
[379364070,1755261044336,-460.0,0.0002,2]
[379364072,1755261044345,-497.3,0.0002,2]
[379364075,1755261044355,-460.0,0.0002,2]
[379364076,1755261044365,-460.0,0.0002,2]
[379364078,1755261044375,-460.0,0.0002,2]
[379364080,1755261044384,-460.0,0.0002,2]
[379364082,1755261044395,-460.0,0.0002,2]
[379364084,1755261044404,-460.0,0.0002,2]
[379364086,1755261044414,-458.28666909,0.0002,2]
[379364088,1755261044423,-955.27,0.0002,2]
[379364090,1755261044433,-244.65,0.0002,2]
[379364092,1755261044443,-460.0,0.0002,2]
[379364094,1755261044453,-500.0,0.0002,2]
[379364096,1755261044462,-460.0,0.0002,2]
[379364098,1755261044471,-278.49,0.0002,2]
[379364100,1755261044481,-460.0,0.0002,2]
[379364102,1755261044490,-544.0,0.00020051,2]
[379364104,1755261044500,-151.0,0.00020054,2]
[379364106,1755261044511,-151.0,0.00020054,2]
[379364108,1755261044526,-151.0,0.00020054,2]
[379364110,1755261044535,-151.0,0.00020054,2]
[379364112,1755261044545,-151.0,0.00020054,2]
[379364114,1755261044554,-151.0,0.00020054,2]
[379364116,1755261044564,-193.464368,0.00020054,2]
[379364118,1755261044573,-151.0,0.00020054,2]
[379364120,1755261044583,-151.0,0.00020054,2]
[379364122,1755261044592,-151.0,0.00020054,2]
[379364124,1755261044601,-153.502831,0.00020054,2]
[379364126,1755261044611,-151.0,0.00020054,2]
[379364127,1755261044619,-151.0,0.00020054,2]
[379364129,1755261044628,-151.0,0.00020054,2]
[379364131,1755261044637,-222.766115,0.00020054,2]